bitfinex/quotes_BTCUSD_20250403
["timestamp","ask_amount","ask_price","bid_price","bid_amount"]
[1743689003070,0.583584,82107.0,82106.0,3e-07]
[1743689003361,0.583584,82107.0,82088.0,0.26530524]
[1743689003362,0.01218,82098.0,82097.0,4e-07]
[1743689003580,0.76668438,82098.0,82097.0,4e-07]
[1743689003804,0.6,82098.0,82097.0,4e-07]
[1743689004016,0.61218,82098.0,82097.0,4e-07]
[1743689004796,0.61231831,82098.0,82097.0,4e-07]
[1743689005256,0.72907391,82098.0,82097.0,4e-07]
[1743689005883,0.26013831,82098.0,82097.0,4e-07]
[1743689006093,0.27231831,82098.0,82097.0,4e-07]
[1743689006558,0.26013831,82098.0,82097.0,4e-07]
[1743689007034,0.27231831,82098.0,82097.0,4e-07]
[1743689007272,0.38907391,82098.0,82097.0,4e-07]
[1743689007526,0.27231831,82098.0,82097.0,4e-07]
[1743689009456,0.61231831,82098.0,82097.0,4e-07]
[1743689009698,0.26013831,82098.0,82097.0,4e-07]
[1743689013230,0.51592931,82098.0,82097.0,4e-07]
[1743689014312,0.50374931,82098.0,82097.0,4e-07]
[1743689014729,0.26013831,82098.0,82097.0,4e-07]
[1743689015373,0.51592931,82098.0,82097.0,4e-07]
[1743689015625,0.51592931,82098.0,82097.0,0.0001686]
[1743689015859,0.97268491,82098.0,82097.0,0.0001686]
[1743689018754,1.15066977,82098.0,82097.0,6e-07]
[1743689018987,1.03392576,82098.0,82097.0,6e-07]
[1743689019489,0.012182,82083.0,82081.0,1e-07]
[1743689019727,0.352184,82074.0,82073.0,4e-07]
[1743689019966,0.26,82074.0,82073.0,4e-07]
[1743689021410,0.26,82074.0,82073.0,0.0121844]
[1743689021662,0.26,82074.0,82073.0,4e-07]
[1743689024964,0.26,82074.0,82073.0,0.12894]
[1743689025186,1.06451831,82098.0,82084.0,0.243651]
[1743689025467,0.243617,82096.0,82083.0,0.012182]
[1743689025650,0.373617,82096.0,82085.0,0.243648]
[1743689025870,0.373617,82096.0,82082.0,0.012182]
[1743689025871,0.243621,82095.0,82082.0,0.243656]
[1743689026017,0.243628,82093.0,82082.0,0.3604116]
[1743689026221,0.04,82093.0,82085.0,0.012182]
[1743689026428,0.04,82093.0,82084.0,0.243646]
[1743689026633,0.283626,82093.0,82082.0,0.1167556]
[1743689026813,0.012182,82087.0,82085.0,0.0001683]
[1743689027015,0.243648,82086.0,82085.0,0.0001683]
[1743689027331,0.04,82086.0,82085.0,0.0001683]
[1743689027931,0.04,82086.0,82085.0,0.2559993]
[1743689028144,0.04,82086.0,82085.0,0.0001683]
[1743689031395,0.5089376,82086.0,82085.0,0.0001683]
[1743689031571,0.54678847,82086.0,82085.0,0.0001683]
[1743689031804,0.38,82086.0,82085.0,0.0001683]
[1743689032007,0.04,82086.0,82085.0,0.0001683]
[1743689032253,0.283646,82086.0,82085.0,0.0001683]
[1743689033267,0.32153214,82086.0,82085.0,0.0001683]
[1743689033478,0.283646,82086.0,82085.0,0.0001683]
[1743689033678,0.07789943,82086.0,82085.0,0.0001683]
[1743689033857,0.283646,82086.0,82085.0,0.0001683]
[1743689034054,0.295828,82086.0,82085.0,0.0001683]
[1743689034256,0.32154541,82086.0,82085.0,0.0001683]
[1743689034481,0.283646,82086.0,82085.0,0.0001683]
[1743689034639,0.3215691,82086.0,82085.0,0.0001683]
[1743689034839,0.3337511,82086.0,82085.0,0.0001683]
[1743689035203,0.3215691,82086.0,82085.0,0.0001683]
[1743689035762,0.0779231,82086.0,82085.0,0.0001683]
[1743689036172,0.0379231,82086.0,82085.0,0.0001683]
[1743689036368,0.01,82086.0,82085.0,0.0001683]
[1743689036773,0.29160509,82086.0,82085.0,0.0001683]
[1743689036984,0.30378709,82086.0,82085.0,0.0001683]
[1743689037360,0.29160509,82086.0,82085.0,0.0001683]
[1743689037571,0.30378709,82086.0,82085.0,0.0001683]
[1743689037776,0.29160509,82086.0,82085.0,0.0001683]
[1743689038637,0.76054269,82086.0,82085.0,0.0001683]
[1743689038853,0.80854269,82086.0,82085.0,3e-07]
[1743689040315,0.255862,82075.0,82074.0,3e-07]
[1743689040528,0.99057669,82075.0,82074.0,3e-07]
[1743689041585,1.00303705,82075.0,82074.0,3e-07]
[1743689043224,0.87382109,82075.0,82074.0,3e-07]
[1743689043467,0.27795909,82075.0,82074.0,0.0121843]
[1743689043673,0.10251407,82099.0,82089.0,0.012181]
[1743689043874,0.0703366,82096.0,82080.0,0.012183]
[1743689044073,0.03790369,82095.0,82085.0,0.012182]
[1743689044286,0.07,82095.0,82087.0,0.012182]
[1743689044492,0.243623,82094.0,82079.0,0.012183]
[1743689044707,0.03,82094.0,82084.0,0.012182]
[1743689044914,0.012181,82091.0,82077.0,0.17464]
[1743689045121,0.243677,82076.0,82074.0,3e-07]
[1743689045354,0.253677,82076.0,82074.0,3e-07]
[1743689045559,0.253677,82076.0,82075.0,0.1289386]
[1743689045560,0.01,82076.0,82075.0,0.1289386]
[1743689045765,0.01,82076.0,82074.0,3e-07]
[1743689045972,0.01,82076.0,82074.0,0.2436813]
[1743689046174,0.01,82076.0,82075.0,0.1289386]
[1743689046379,0.01,82076.0,82074.0,3e-07]
[1743689048083,0.01,82076.0,82074.0,0.2558643]
[1743689048261,0.01,82076.0,82075.0,0.1289386]
[1743689048826,0.243634,82091.0,82080.0,0.012183]
[1743689048972,0.08,82091.0,82090.0,0.255816]
[1743689049183,0.0003366,82096.0,82090.0,0.1167556]
[1743689049386,0.012181,82089.0,82073.0,0.1738804]
[1743689049596,0.15,82089.0,82076.0,0.012183]
[1743689049796,0.15,82089.0,82076.0,0.1167556]
[1743689049996,0.243664,82080.0,82076.0,0.1167556]
[1743689050253,0.01,82080.0,82076.0,0.1167556]
[1743689050671,0.01,82080.0,82076.0,0.3604296]
[1743689050921,0.01,82080.0,82076.0,0.1167556]
[1743689051303,0.01,82080.0,82079.0,0.243667]
[1743689051454,0.01,82080.0,82079.0,0.3726056]
[1743689051634,0.0003366,82096.0,82090.0,0.243634]
[1743689051841,0.0303366,82096.0,82093.0,0.243624]
[1743689052046,0.0303366,82096.0,82094.0,0.243623]
[1743689052254,0.0303366,82096.0,82093.0,0.1167556]
[1743689052465,0.0303366,82096.0,82095.0,0.24362]
[1743689052667,0.0303366,82096.0,82095.0,0.255801]
[1743689053099,0.0303366,82096.0,82095.0,0.3725566]
[1743689053322,0.0003366,82096.0,82095.0,0.3725566]
[1743689053686,0.0003366,82096.0,82095.0,0.38709745]
[1743689053894,0.10695262,82123.0,82122.0,0.012177]
[1743689054139,0.10695262,82123.0,82122.0,0.3724726]
[1743689054402,0.1070914,82123.0,82122.0,0.3724726]
[1743689054907,0.1070914,82123.0,82122.0,0.41472837]
[1743689055151,0.243548,82120.0,82118.0,0.17324]
[1743689055411,0.02,82120.0,82118.0,0.17324]
[1743689055648,0.02,82120.0,82105.0,0.012179]
[1743689055904,0.012177,82118.0,82104.0,0.416592]
[1743689056154,0.08,82118.0,82110.0,0.243573]
[1743689056416,0.243566,82114.0,82106.0,0.1167556]
[1743689056655,0.04,82114.0,82088.0,0.0476]
[1743689056917,0.255763,82108.0,82091.0,0.18469847]
[1743689057126,0.243613,82098.0,82092.0,0.1167556]
[1743689057344,0.243627,82093.0,82091.0,0.01197847]
[1743689057550,0.03,82093.0,82088.0,0.243638]
[1743689057755,0.03,82093.0,82092.0,0.1167556]
[1743689057962,0.03,82093.0,82081.0,0.24366]
[1743689058164,0.03,82093.0,82091.0,0.24363]
[1743689058408,0.03,82093.0,82090.0,0.255815]
[1743689059080,0.03,82093.0,82092.0,0.012181]
[1743689059318,0.03,82093.0,82092.0,0.1289366]
[1743689060047,1.05216,82123.0,82106.0,0.243587]
[1743689060297,0.012179,82106.0,82089.0,0.255816]
[1743689060516,0.243615,82097.0,82088.0,0.24364]
[1743689060769,0.03,82097.0,82089.0,0.1167556]
[1743689061239,0.03,82097.0,82085.0,0.10689153]
[1743689061240,0.255828,82086.0,82085.0,0.10689153]
[1743689061435,0.355828,82086.0,82085.0,0.10689153]
[1743689061891,0.343646,82086.0,82085.0,0.10689153]
[1743689062153,0.355828,82086.0,82085.0,0.10689153]
[1743689062419,0.355828,82086.0,82085.0,0.00046163]
[1743689062674,0.8125836,82086.0,82085.0,0.00046163]
[1743689062920,0.8125836,82086.0,82052.0,0.1064299]
[1743689062921,0.255862,82075.0,82052.0,0.1064299]
[1743689063161,1.29341497,82075.0,82052.0,0.1064299]
[1743689063406,1.26841497,82075.0,82052.0,0.1064299]
[1743689063612,1.2305776,82075.0,82052.0,0.1064299]
[1743689064288,1.23951396,82075.0,82052.0,0.1064299]
[1743689064506,1.25405481,82075.0,82052.0,0.1064299]
[1743689064728,1.29186988,82075.0,82052.0,0.1064299]
[1743689064997,0.36672485,82074.0,82052.0,0.1064299]
[1743689065214,0.78129552,82074.0,82052.0,0.1064299]
[1743689065682,0.595931,82053.0,82052.0,0.1064299]
[1743689065905,0.875931,82053.0,82052.0,0.1064299]
[1743689066339,0.9926866,82053.0,82052.0,0.1064299]
[1743689066560,0.9926866,82053.0,82033.0,0.00012]
[1743689066561,0.352187,82052.0,82033.0,0.00012]
[1743689066775,0.7944426,82052.0,82033.0,0.00012]
[1743689066977,0.79490489,82052.0,82033.0,0.00012]
[1743689067565,0.595946,82048.0,82033.0,0.00012]
[1743689067764,0.97724245,82048.0,82047.0,2e-07]
[1743689068229,0.98660251,82048.0,82047.0,2e-07]
[1743689068439,0.256013,82027.0,82021.0,0.004]
[1743689068656,1.0422686,82027.0,82021.0,0.004]
[1743689069393,0.596028,82022.0,82021.0,0.004]
[1743689069604,2.0354236,82022.0,82021.0,0.004]
[1743689069812,2.05042645,82022.0,82021.0,0.004]
[1743689070252,0.596049,82015.0,82014.0,2e-07]
[1743689070463,0.99734545,82015.0,82014.0,2e-07]
[1743689070660,1.03065246,82015.0,82014.0,2e-07]
[1743689071276,1.0298046,82015.0,82014.0,2e-07]
[1743689072799,0.900857,82015.0,82014.0,2e-07]
[1743689072970,0.27,82015.0,82014.0,2e-07]
[1743689073395,0.27,82015.0,82014.0,0.0121932]
[1743689073622,0.27,82015.0,82014.0,0.1289488]
[1743689073844,0.000462,82022.0,82021.0,0.012191]
[1743689074101,0.010462,82022.0,82019.0,0.012192]
[1743689074298,0.010462,82022.0,82014.0,0.2438582]
[1743689074497,0.243839,82021.0,82014.0,2e-07]
[1743689074703,0.02,82021.0,82014.0,2e-07]
[1743689074900,0.02,82021.0,82019.0,0.243843]
[1743689075075,0.02,82021.0,82020.0,0.012192]
[1743689075303,0.02,82021.0,82020.0,0.256034]
[1743689075531,0.02,82021.0,82011.0,0.256062]
[1743689075735,0.02,82021.0,82019.0,0.243844]
[1743689076206,0.02,82021.0,82015.0,0.1167556]
[1743689076437,0.02,82021.0,82019.0,0.243843]
[1743689076648,0.02,82021.0,82020.0,0.012192]
[1743689076978,0.02,82021.0,82020.0,0.1289476]
[1743689077829,0.000462,82022.0,82021.0,0.25603]
[1743689077982,0.000462,82022.0,82021.0,0.3727856]
[1743689079213,0.000462,82022.0,82021.0,0.3605946]
[1743689079436,0.010462,82022.0,82021.0,0.012191]
[1743689080186,0.010462,82022.0,82018.0,0.256034]
[1743689080187,0.243846,82019.0,82011.0,0.012193]
[1743689080418,0.03,82019.0,82014.0,0.0121932]
[1743689080595,0.03,82019.0,82016.0,0.012192]
[1743689081050,0.03,82019.0,82016.0,0.252045]
[1743689081260,0.03,82019.0,82016.0,0.243853]
[1743689081450,0.243856,82016.0,82014.0,2e-07]
[1743689081700,0.343856,82016.0,82014.0,2e-07]
[1743689083129,0.6411876,82015.0,82014.0,2e-07]
[1743689083366,0.8711876,82015.0,82014.0,2e-07]
[1743689083796,0.8713876,82015.0,82014.0,2e-07]
[1743689084023,0.57,82015.0,82014.0,2e-07]
[1743689084273,0.582192,82015.0,82014.0,2e-07]
[1743689084777,0.57,82015.0,82014.0,2e-07]
[1743689085242,0.813857,82015.0,82014.0,2e-07]
[1743689085529,0.57,82015.0,82014.0,2e-07]
[1743689086016,0.23,82015.0,82014.0,2e-07]
[1743689088540,0.242192,82015.0,82014.0,2e-07]
[1743689088740,0.23,82015.0,82014.0,2e-07]
[1743689089392,0.242192,82015.0,82014.0,2e-07]
[1743689089952,0.582192,82015.0,82014.0,2e-07]
[1743689090163,0.6989476,82015.0,82014.0,2e-07]
[1743689090532,0.582192,82015.0,82014.0,2e-07]
[1743689090955,0.57,82015.0,82014.0,2e-07]
[1743689091158,0.23,82015.0,82014.0,2e-07]
[1743689091363,0.242192,82015.0,82014.0,2e-07]
[1743689091749,0.6989476,82015.0,82014.0,2e-07]
[1743689091952,0.582192,82015.0,82014.0,2e-07]
[1743689092615,0.57,82015.0,82014.0,2e-07]
[1743689092811,0.582192,82015.0,82014.0,2e-07]
[1743689093629,0.012193,82011.0,82010.0,8.011e-05]
[1743689093838,0.012193,82011.0,82000.0,0.001]
[1743689093839,0.243899,82001.0,82000.0,0.001]
[1743689094041,0.343899,82001.0,82000.0,0.001]
[1743689095768,0.356093,82001.0,82000.0,0.001]
[1743689095974,0.343899,82001.0,82000.0,0.001]
[1743689096712,0.356093,82001.0,82000.0,0.001]
[1743689097155,0.343899,82001.0,82000.0,0.001]
[1743689097371,0.356093,82001.0,82000.0,0.001]
[1743689098078,0.8582486,82001.0,82000.0,0.001]
[1743689098278,0.89613021,82001.0,82000.0,0.001]
[1743689098999,0.89613021,82001.0,82000.0,0.0011683]
[1743689099427,0.89613021,82001.0,82000.0,3e-07]
[1743689101100,0.76718061,82001.0,82000.0,3e-07]
[1743689101326,1.737299,82001.0,82000.0,3e-07]
[1743689101533,0.1,82001.0,82000.0,3e-07]
[1743689101745,0.343899,82001.0,82000.0,3e-07]
[1743689101966,0.8228486,82001.0,82000.0,3e-07]
[1743689102185,0.95821105,82001.0,82000.0,3e-07]
[1743689102406,0.9436702,82001.0,82000.0,3e-07]
[1743689103047,0.1,82001.0,82000.0,0.0121953]
[1743689103260,0.343899,82001.0,82000.0,3e-07]
[1743689105239,0.243884,82007.0,82000.0,0.1167559]
[1743689105464,0.243899,82001.0,82000.0,3e-07]
[1743689105680,0.243899,82001.0,82000.0,0.1289509]
[1743689105681,0.02,82001.0,82000.0,0.1289509]
[1743689105887,0.263899,82001.0,82000.0,3e-07]
[1743689106303,0.276093,82001.0,82000.0,3e-07]
[1743689106720,0.30181197,82001.0,82000.0,3e-07]
[1743689106928,0.31318254,82001.0,82000.0,3e-07]
[1743689107358,0.66537654,82001.0,82000.0,3e-07]
[1743689107569,0.78213214,82001.0,82000.0,3e-07]
[1743689107794,0.31318254,82001.0,82000.0,3e-07]
[1743689108034,0.02322815,82001.0,82000.0,0.2560973]
[1743689108252,0.01137057,82001.0,82000.0,0.5544529]
[1743689109922,0.00757057,82001.0,82000.0,0.56899375]
[1743689110134,4.071e-05,82010.0,82009.0,0.61060885]
[1743689110353,4.071e-05,82010.0,82009.0,0.72736445]
[1743689110586,4.071e-05,82010.0,82009.0,0.3728236]
[1743689111653,0.243886,82006.0,82000.0,3e-07]
[1743689111878,4.071e-05,82010.0,82008.0,0.243877]
[1743689112115,0.01004071,82010.0,82009.0,0.1289486]
[1743689112327,0.01004071,82010.0,82001.0,0.18156]
[1743689112758,0.01004071,82010.0,82002.0,0.243894]
[1743689112974,0.243899,82001.0,81991.0,0.004]
[1743689113189,0.426093,82001.0,81991.0,0.004]
[1743689113607,0.46401816,82001.0,81991.0,0.004]
[1743689113815,0.92077376,82001.0,81991.0,0.004]
[1743689115504,0.97067376,82001.0,81991.0,0.004]
[1743689115913,0.98521461,82001.0,81991.0,0.004]
[1743689116694,0.61066285,81992.0,81991.0,0.004]
[1743689116906,1.18704345,81992.0,81991.0,0.004]
[1743689117534,1.1725026,81992.0,81991.0,0.004]
[1743689117741,1.21014668,81992.0,81991.0,0.004]
[1743689118171,1.2106084,81992.0,81991.0,0.004]
[1743689118373,1.19606755,81992.0,81991.0,0.004]
[1743689118782,1.18786517,81992.0,81991.0,0.004]
[1743689121058,0.87450888,81992.0,81991.0,0.004]
[1743689121260,0.24046172,81992.0,81991.0,0.004]
[1743689121452,0.58046172,81992.0,81991.0,0.004]
[1743689121869,0.59265772,81992.0,81991.0,0.004]
[1743689122035,0.24046172,81992.0,81991.0,0.004]
[1743689122645,0.25265772,81992.0,81991.0,0.004]
[1743689122820,0.36941332,81992.0,81991.0,0.004]
[1743689123032,0.24046172,81992.0,81991.0,0.004]
[1743689123207,0.25265772,81992.0,81991.0,0.004]
[1743689123415,0.70941332,81992.0,81991.0,0.004]
[1743689123634,0.70941332,81992.0,81991.0,0.0041684]
[1743689123837,0.58046172,81992.0,81991.0,0.0041684]
[1743689124045,0.58079852,81992.0,81991.0,0.0041684]
[1743689124244,0.59299452,81992.0,81991.0,0.0041684]
[1743689124447,0.70975012,81992.0,81991.0,0.0041684]
[1743689125084,0.72110984,81992.0,81991.0,0.0041684]
[1743689126644,0.25215824,81992.0,81991.0,0.0041684]
[1743689126845,0.243933,81990.0,81985.0,0.2740186]
[1743689127080,0.273933,81990.0,81985.0,0.2740186]
[1743689127487,0.286129,81990.0,81985.0,0.2740186]
[1743689127710,0.583944,81986.0,81985.0,0.27171539]
[1743689127940,0.723944,81986.0,81985.0,0.27171539]
[1743689128176,0.736141,81986.0,81985.0,0.27171539]
[1743689128901,0.14,81986.0,81985.0,0.27171539]
[1743689129369,0.15135972,81986.0,81985.0,0.64461499]
[1743689129620,0.01135972,81986.0,81985.0,0.64461499]
[1743689130596,0.00079852,81992.0,81985.0,0.64461499]
[1743689130843,0.01079852,81992.0,81986.0,0.1167556]
[1743689131092,0.01079852,81992.0,81988.0,0.243938]
[1743689131327,0.01079852,81992.0,81989.0,0.243933]
[1743689131564,0.01079852,81992.0,81985.0,0.52785639]
[1743689131802,0.012197,81986.0,81985.0,0.27171539]
[1743689132067,0.04,81986.0,81985.0,0.27171539]
[1743689132530,0.04,81986.0,81985.0,0.51566239]
[1743689132754,0.04,81986.0,81985.0,0.52785939]
[1743689132973,0.00079852,81992.0,81991.0,0.256125]
[1743689133196,0.01079852,81992.0,81991.0,0.3728806]
[1743689133412,0.00079852,81992.0,81991.0,0.3728806]
[1743689134550,0.00079852,81992.0,81985.0,0.27171539]
[1743689134799,0.03079852,81992.0,81985.0,0.27171539]
[1743689135059,0.01135953,81991.0,81985.0,0.27171539]
[1743689135288,0.243934,81990.0,81985.0,0.27171539]
[1743689135524,0.01,81990.0,81985.0,0.27171539]
[1743689135748,0.243938,81988.0,81985.0,0.27171539]
[1743689135969,0.01,81988.0,81985.0,0.27188379]
[1743689136229,0.01,81988.0,81987.0,0.012197]
[1743689136466,0.01,81988.0,81987.0,0.1167556]
[1743689136673,0.01,81988.0,81985.0,0.52802479]
[1743689136891,0.01,81988.0,81986.0,0.25614]
[1743689137339,0.01,81988.0,81985.0,0.27188379]
[1743689138461,0.01,81988.0,81986.0,0.243944]
[1743689139180,0.01,81988.0,81985.0,0.27188379]
[1743689139652,0.243942,81987.0,81985.0,0.27188379]
[1743689139879,0.01,81987.0,81985.0,0.27188379]
[1743689140053,0.01,81987.0,81986.0,0.1289526]
[1743689140289,0.01,81987.0,81986.0,0.13139179]
[1743689140496,0.00079852,81992.0,81991.0,0.012196]
[1743689140701,0.00079852,81992.0,81991.0,0.3728806]
[1743689141716,0.00079852,81992.0,81986.0,0.256138]
[1743689141717,0.00079852,81992.0,81985.0,0.27188379]
[1743689141966,0.01079852,81992.0,81986.0,0.3728936]
[1743689142200,0.01079852,81992.0,81988.0,0.012196]
[1743689142654,0.01079852,81992.0,81989.0,0.243933]
[1743689142904,0.01079852,81992.0,81988.0,0.243937]
[1743689143126,0.01079852,81992.0,81991.0,0.012196]
[1743689143348,0.01079852,81992.0,81991.0,0.1289516]
[1743689143576,0.00079852,81992.0,81987.0,0.012197]
[1743689143827,0.00079852,81992.0,81989.0,0.243932]
[1743689144047,0.00079852,81992.0,81991.0,0.012196]
[1743689144272,0.01079852,81992.0,81991.0,0.1289516]
[1743689144502,0.01079852,81992.0,81991.0,0.1167556]
[1743689144723,0.01079852,81992.0,81980.0,0.243959]
[1743689144724,0.26611144,81992.0,81985.0,0.27188379]
[1743689144974,0.243939,81988.0,81985.0,0.27188379]
[1743689145231,0.01,81988.0,81985.0,0.52802679]
[1743689145464,0.01,81988.0,81985.0,0.28408079]
[1743689145711,0.01,81988.0,81985.0,0.27188379]
[1743689145956,0.01,81988.0,81987.0,0.012197]
[1743689146202,0.00079852,81992.0,81991.0,0.256125]
[1743689146449,5.2e-07,81992.0,81991.0,0.72742145]
[1743689146692,4.071e-05,82010.0,82009.0,0.256068]
[1743689146930,4.071e-05,82010.0,82009.0,0.5657836]
[1743689148123,4.071e-05,82010.0,82009.0,0.92032445]
[1743689149356,4.071e-05,82010.0,82009.0,0.5657836]
[1743689149618,0.00037751,82010.0,82009.0,0.5657836]
[1743689150373,0.00037751,82010.0,82009.0,0.58032445]
[1743689150605,1.1e-07,82016.0,82015.0,0.261049]
[1743689150844,0.0483,82066.0,82048.0,0.255946]
[1743689151096,0.243679,82076.0,82048.0,0.5644216]
[1743689151343,0.10630967,82079.0,82048.0,0.91896245]
[1743689151584,0.03812477,82079.0,82052.0,0.012187]
[1743689151834,0.11695262,82068.0,82066.0,0.243704]
[1743689152071,0.11695262,82068.0,82066.0,0.255889]
[1743689152318,0.1170428,82068.0,82066.0,0.255889]
[1743689152543,0.1170428,82068.0,82066.0,0.3604606]
[1743689152895,0.1170428,82068.0,82067.0,0.1289406]
[1743689153104,0.1170428,82068.0,82067.0,0.1167556]
[1743689153469,0.243712,82066.0,82055.0,0.255924]
[1743689153679,0.263712,82066.0,82056.0,0.3604896]
[1743689153891,0.263712,82066.0,82051.0,0.012187]
[1743689153892,0.243718,82062.0,82052.0,0.243745]
[1743689154061,0.243725,82060.0,82055.0,0.243737]
[1743689154316,0.01,82060.0,82059.0,0.25591]
[1743689154530,0.01,82060.0,82059.0,0.3726656]
[1743689154964,9.018e-05,82068.0,82067.0,0.255888]
[1743689155192,0.01009018,82068.0,82067.0,0.255888]
[1743689155612,0.01009018,82068.0,82065.0,0.255892]
[1743689155821,0.243706,82067.0,82060.0,0.243723]
[1743689156027,0.243706,82067.0,82063.0,0.243713]
[1743689156028,0.03,82067.0,82063.0,0.243713]
[1743689156246,0.243706,82066.0,82062.0,0.243716]
[1743689156490,0.243706,82066.0,82061.0,0.012186]
[1743689156491,0.273706,82066.0,82061.0,0.255906]
[1743689156710,0.03,82066.0,82061.0,0.255906]
[1743689157130,0.03,82066.0,82065.0,0.255894]
[1743689157334,0.03,82066.0,82065.0,0.3726496]
[1743689157997,0.03,82066.0,82065.0,0.1167556]
[1743689158200,0.03,82066.0,82065.0,0.1289406]
[1743689159721,0.03,82066.0,82060.0,0.012186]
[1743689159928,0.03,82066.0,82064.0,0.24371]
[1743689160142,0.03,82066.0,82062.0,0.243715]
[1743689160368,0.24373,82058.0,82053.0,0.243742]
[1743689160586,0.243733,82057.0,82048.0,0.243757]
[1743689160800,0.24374,82055.0,82048.0,0.012187]
[1743689161008,0.24379018,82068.0,82060.0,0.012186]
[1743689161217,0.04009018,82068.0,82067.0,0.255888]
[1743689161436,0.04009018,82068.0,82067.0,0.1289406]
[1743689161644,0.04009018,82068.0,82067.0,0.3726436]
[1743689161868,9.018e-05,82068.0,82067.0,0.3726436]
[1743689162043,9.018e-05,82068.0,82067.0,0.38718445]
[1743689162281,9.018e-05,82068.0,82067.0,0.7126436]
[1743689162488,0.0003372,82074.0,82073.0,0.595869]
[1743689162702,0.00079972,82074.0,82073.0,0.3726246]
[1743689163566,0.09079972,82074.0,82057.0,0.004872]
[1743689163769,0.012184,82069.0,82061.0,0.243719]
[1743689163980,0.00079972,82074.0,82073.0,0.012184]
[1743689164126,0.243691,82071.0,82067.0,0.012185]
[1743689164366,0.04,82071.0,82069.0,0.243696]
[1743689164904,0.04,82071.0,82069.0,0.3604516]
[1743689165117,0.04,82071.0,82070.0,0.1289396]
[1743689165526,0.00079972,82074.0,82073.0,0.255869]
[1743689165728,0.02079972,82074.0,82073.0,0.3726246]
[1743689166159,0.03298372,82074.0,82043.0,0.438789]
[1743689166365,0.02079972,82074.0,82067.0,0.012185]
[1743689166575,0.02079972,82074.0,82072.0,0.243687]
[1743689166778,0.02079972,82074.0,82073.0,0.1289396]
[1743689166990,0.02079972,82074.0,82073.0,0.13137621]
[1743689167109,0.00079972,82074.0,82073.0,0.1289396]
[1743689167310,0.00079972,82074.0,82073.0,0.72960185]
[1743689167509,0.00079972,82074.0,82073.0,0.72716545]
[1743689167715,7.2e-07,82084.0,82083.0,0.595837]
[1743689167912,7.2e-07,82084.0,82083.0,0.91589345]
[1743689168526,7.2e-07,82084.0,82082.0,0.243658]
[1743689168752,7.2e-07,82084.0,82073.0,0.25600731]
[1743689168753,0.01000072,82084.0,82073.0,0.01232231]
[1743689169112,0.01000072,82084.0,82080.0,0.243663]
[1743689169343,0.01000072,82084.0,82078.0,0.012183]
[1743689169561,0.01000072,82084.0,82073.0,0.00013831]
[1743689169562,0.255866,82074.0,82073.0,0.00013831]
[1743689169773,1.568426,82074.0,82073.0,0.00013831]
[1743689169982,1.65256,82074.0,82073.0,0.00013831]
[1743689170200,1.664744,82074.0,82073.0,0.00013831]
[1743689170619,1.65256,82074.0,82073.0,0.00013831]
[1743689170828,1.31256,82074.0,82073.0,0.00013831]
[1743689171242,0.26,82074.0,82073.0,0.01232231]
[1743689171450,0.26,82074.0,82073.0,0.12907791]
[1743689171916,7.2e-07,82084.0,82083.0,0.255837]
[1743689172125,7.2e-07,82084.0,82083.0,0.5607126]
[1743689172327,7.2e-07,82084.0,82078.0,0.243668]
[1743689172328,0.243659,82082.0,82078.0,0.012183]
[1743689172536,0.243662,82081.0,82076.0,0.243673]
[1743689172744,0.253661,82081.0,82077.0,0.243672]
[1743689172957,0.01,82081.0,82079.0,0.243665]
[1743689173160,0.01,82081.0,82079.0,0.3726036]
[1743689173370,0.01,82081.0,82079.0,0.1167556]
[1743689173571,0.01,82081.0,82068.0,0.0001682]
[1743689173572,0.301462,82075.0,82068.0,0.0001682]
[1743689173788,0.549279,82075.0,82068.0,0.0001682]
[1743689174015,0.561462,82075.0,82068.0,0.0001682]
[1743689174228,0.012184,82074.0,82068.0,0.0001682]
[1743689174429,0.182184,82074.0,82068.0,0.0001682]
[1743689175289,0.80328361,82074.0,82068.0,0.0001682]
[1743689175522,0.595881,82069.0,82068.0,2e-07]
[1743689175724,0.0462,82073.0,82071.0,0.012184]
[1743689175927,0.243694,82070.0,82068.0,2e-07]
[1743689176136,0.283694,82070.0,82068.0,2e-07]
[1743689176552,0.04,82070.0,82068.0,2e-07]
[1743689177050,0.04,82070.0,82069.0,0.255881]
[1743689177514,0.04,82070.0,82069.0,0.243697]
[1743689177753,0.04,82070.0,82068.0,0.2436992]
[1743689177999,0.04,82070.0,82068.0,0.3604548]
[1743689178177,0.012184,82069.0,82068.0,2e-07]
[1743689178402,0.05,82069.0,82068.0,2e-07]
[1743689178926,0.062184,82069.0,82068.0,2e-07]
[1743689179128,0.05,82069.0,82068.0,2e-07]
[1743689179367,0.062184,82069.0,82068.0,2e-07]
[1743689179834,0.05,82069.0,82068.0,2e-07]
[1743689180041,0.05,82069.0,82068.0,0.1289408]
[1743689180942,0.05,82069.0,82068.0,0.3150208]
[1743689181144,7.2e-07,82084.0,82068.0,0.3150208]
[1743689181145,7.2e-07,82084.0,82083.0,0.012182]
[1743689181398,0.01000072,82084.0,82083.0,0.1167556]
[1743689181646,0.01000072,82084.0,82083.0,0.012182]
[1743689181898,0.01000072,82084.0,82083.0,0.1289376]
[1743689183004,7.2e-07,82084.0,82083.0,0.48591475]
[1743689183211,0.0003364,82093.0,82092.0,0.25581]
[1743689183421,0.0003364,82093.0,82092.0,0.57226645]
[1743689183633,0.00043216,82093.0,82092.0,0.5577256]
[1743689183843,0.01043216,82093.0,82092.0,0.3140966]
[1743689184052,0.01043216,82093.0,82092.0,0.18516]
[1743689184283,0.01043216,82093.0,82092.0,0.197341]
[1743689184492,0.01043216,82093.0,82092.0,0.18516]
[1743689184712,0.01043216,82093.0,82092.0,0.44097]
[1743689185127,0.01043216,82093.0,82092.0,0.5577256]
[1743689185537,0.00043216,82093.0,82092.0,0.5577256]
[1743689185780,0.00043216,82093.0,82092.0,0.18516]
[1743689185961,0.01043216,82093.0,82092.0,0.3140966]
[1743689187396,0.25405816,82093.0,82092.0,0.18516]